[Event "Titled Tuesday Blitz August 22 Early 2023"]
[White "Dwilewicz, Katarzyna"]
[Black "matenitian"]
[WhiteFideId "1148486"]
[WhiteElo "2422"]
[BlackElo "2505"]
[Result "1-0"]
[Round "10"]
[TimeControl "180+1"]
[Date "2023.08.22"]
[WhiteClock "0:00:07"]
[BlackClock "0:00:10"]
[Board "99"]

1. e4 {[%clk 0:03:00]}  e5 {[%clk 0:02:59]} 2. Nf3 {[%clk 0:02:59]}  Nc6 {[%clk 0:03:00]} 3. Bc4 {[%clk 0:02:59]}  Nf6 {[%clk 0:03:00]} 4. d3 {[%clk 0:03:00]}  h6 {[%clk 0:02:59]} 5. O-O {[%clk 0:02:58]}  d6 {[%clk 0:03:00]} 6. c3 {[%clk 0:02:53]}  g5 {[%clk 0:03:00]} 7. Re1 {[%clk 0:02:48]}  Bg7 {[%clk 0:02:56]} 8. d4 {[%clk 0:02:42]}  O-O {[%clk 0:02:45]} 9. dxe5 {[%clk 0:02:29]}  dxe5 {[%clk 0:02:43]} 10. Qxd8 {[%clk 0:02:22]}  Rxd8 {[%clk 0:02:42]} 11. Nbd2 {[%clk 0:02:21]}  g4 {[%clk 0:02:32]} 12. Nh4 {[%clk 0:02:17]}  Na5 {[%clk 0:02:30]} 13. Bf1 {[%clk 0:02:09]}  Be6 {[%clk 0:02:29]} 14. Nf5 {[%clk 0:02:04]}  Bf8 {[%clk 0:01:49]} 15. b3 {[%clk 0:01:49]}  Nxe4 {[%clk 0:01:37]} 16. Nxh6+ {[%clk 0:01:39]}  Bxh6 {[%clk 0:01:36]} 17. Nxe4 {[%clk 0:01:40]}  Bxc1 {[%clk 0:01:35]} 18. Raxc1 {[%clk 0:01:40]}  Kg7 {[%clk 0:01:31]} 19. Rcd1 {[%clk 0:01:36]}  b6 {[%clk 0:01:30]} 20. Ng5 {[%clk 0:00:40]}  Bf5 {[%clk 0:01:28]} 21. Rxd8 {[%clk 0:00:32]}  Rxd8 {[%clk 0:01:29]} 22. Rxe5 {[%clk 0:00:28]}  Kf6 {[%clk 0:01:23]} 23. f4 {[%clk 0:00:25]}  Rd1 {[%clk 0:01:12]} 24. Kf2 {[%clk 0:00:22]}  Nc6 {[%clk 0:01:03]} 25. Re1 {[%clk 0:00:17]}  Rd2+ {[%clk 0:01:01]} 26. Re2 {[%clk 0:00:17]}  Rd8 {[%clk 0:00:55]} 27. Ne4+ {[%clk 0:00:16]}  Kg6 {[%clk 0:00:51]} 28. Ng3 {[%clk 0:00:14]}  Bc8 {[%clk 0:00:42]} 29. Ke1 {[%clk 0:00:11]}  Rh8 {[%clk 0:00:32]} 30. Rd2 {[%clk 0:00:08]}  Rxh2 {[%clk 0:00:27]} 31. Bb5 {[%clk 0:00:08]}  Ne7 {[%clk 0:00:20]} 32. Nf1 {[%clk 0:00:05]}  Rh1 {[%clk 0:00:18]} 33. Kf2 {[%clk 0:00:05]}  Be6 {[%clk 0:00:15]} 34. Bd3+ {[%clk 0:00:05]}  Kf6 {[%clk 0:00:14]} 35. Ng3 {[%clk 0:00:05]}  Ra1 {[%clk 0:00:13]} 36. Ne4+ {[%clk 0:00:06]}  Kg7 {[%clk 0:00:13]} 37. Ng5 {[%clk 0:00:06]}  Bc8 {[%clk 0:00:12]} 38. Bc4 {[%clk 0:00:05]}  f6 {[%clk 0:00:11]} 39. Ne6+ {[%clk 0:00:06]}  Bxe6 {[%clk 0:00:12]} 40. Bxe6 {[%clk 0:00:06]}  f5 {[%clk 0:00:11]} 41. b4 {[%clk 0:00:07]}  Kf6 {[%clk 0:00:11]} 42. Bb3 {[%clk 0:00:07]}  Rc1 {[%clk 0:00:11]} 43. Rc2 {[%clk 0:00:05]}  Rh1 {[%clk 0:00:10]} 44. Re2 {[%clk 0:00:06]}  a5 {[%clk 0:00:10]} 45. Re6+ {[%clk 0:00:06]}  Kf7 {[%clk 0:00:10]} 46. Rh6+ {[%clk 0:00:07]}  Kg7 {[%clk 0:00:10]} 47. Rxh1 {[%clk 0:00:07]}  Ng6 {[%clk 0:00:10]} 48. g3 {[%clk 0:00:07]}  axb4 {[%clk 0:00:10]} 49. cxb4 {[%clk 0:00:07]}  c5 {[%clk 0:00:11]} 50. bxc5 {[%clk 0:00:07]}  bxc5 {[%clk 0:00:10]} 51. Rc1 {[%clk 0:00:07]} 1-0


[Site "https://www.chess.com"]

[Event "Titled Tuesday Blitz August 22 Early 2023"]
[White "Buchenau, Frank"]
[Black "le-castor-faineant"]
[WhiteFideId "4604350"]
[WhiteElo "2432"]
[BlackElo "2274"]
[Result "1-0"]
[Round "10"]
[TimeControl "180+1"]
[Date "2023.08.22"]
[WhiteClock "0:01:18"]
[BlackClock "0:01:59"]
[Board "101"]

1. e4 {[%clk 0:03:00]}  e5 {[%clk 0:02:56]} 2. Bc4 {[%clk 0:03:00]}  Nc6 {[%clk 0:02:55]} 3. Nf3 {[%clk 0:03:00]}  Nf6 {[%clk 0:02:55]} 4. d3 {[%clk 0:03:00]}  Bc5 {[%clk 0:02:55]} 5. O-O {[%clk 0:02:59]}  O-O {[%clk 0:02:55]} 6. c3 {[%clk 0:02:59]}  d5 {[%clk 0:02:55]} 7. exd5 {[%clk 0:02:59]}  Nxd5 {[%clk 0:02:55]} 8. Re1 {[%clk 0:02:59]}  Re8 {[%clk 0:02:55]} 9. d4 {[%clk 0:02:57]}  exd4 {[%clk 0:02:54]} 10. Rxe8+ {[%clk 0:02:56]}  Qxe8 {[%clk 0:02:55]} 11. Bxd5 {[%clk 0:02:57]}  dxc3 {[%clk 0:02:54]} 12. Nxc3 {[%clk 0:02:55]}  Bg4 {[%clk 0:02:51]} 13. Ne4 {[%clk 0:02:41]}  Bb6 {[%clk 0:02:43]} 14. Neg5 {[%clk 0:02:39]}  Rd8 {[%clk 0:02:40]} 15. Qd3 {[%clk 0:02:03]}  Nb4 {[%clk 0:02:12]} 16. Qxh7+ {[%clk 0:01:52]}  Kf8 {[%clk 0:02:11]} 17. Qh8+ {[%clk 0:01:43]}  Ke7 {[%clk 0:02:11]} 18. Qxe8+ {[%clk 0:01:39]}  Kxe8 {[%clk 0:02:11]} 19. Bxf7+ {[%clk 0:01:38]}  Kf8 {[%clk 0:02:09]} 20. Bd2 {[%clk 0:01:25]}  Nc2 {[%clk 0:02:03]} 21. Rc1 {[%clk 0:01:18]}  Nd4 {[%clk 0:01:59]} 1-0


[Site "https://www.chess.com"]

[Event "Titled Tuesday Blitz August 22 Early 2023"]
[White "Kleiman, Jake"]
[Black "Tiarks, Jann-Christian"]
[WhiteFideId "2020041"]
[BlackFideId "12951595"]
[WhiteElo "2660"]
[BlackElo "2328"]
[Result "1-0"]
[Round "10"]
[TimeControl "180+1"]
[Date "2023.08.22"]
[WhiteClock "0:00:31"]
[BlackClock "0:00:35"]
[Board "102"]

1. Nf3 {[%clk 0:03:00]}  Nf6 {[%clk 0:02:55]} 2. g3 {[%clk 0:03:00]}  g6 {[%clk 0:02:56]} 3. Bg2 {[%clk 0:03:01]}  Bg7 {[%clk 0:02:56]} 4. O-O {[%clk 0:03:02]}  O-O {[%clk 0:02:56]} 5. d3 {[%clk 0:03:03]}  d5 {[%clk 0:02:56]} 6. Nbd2 {[%clk 0:03:03]}  c6 {[%clk 0:02:55]} 7. e4 {[%clk 0:03:04]}  Bg4 {[%clk 0:02:52]} 8. Re1 {[%clk 0:03:04]}  e6 {[%clk 0:02:52]} 9. h3 {[%clk 0:03:03]}  Bxf3 {[%clk 0:02:52]} 10. Qxf3 {[%clk 0:03:04]}  Nbd7 {[%clk 0:02:51]} 11. Qe2 {[%clk 0:03:04]}  dxe4 {[%clk 0:02:45]} 12. dxe4 {[%clk 0:03:03]}  e5 {[%clk 0:02:45]} 13. Nc4 {[%clk 0:03:04]}  Qc7 {[%clk 0:02:42]} 14. b3 {[%clk 0:02:57]}  Rfe8 {[%clk 0:02:38]} 15. a4 {[%clk 0:02:56]}  b5 {[%clk 0:02:34]} 16. axb5 {[%clk 0:02:54]}  cxb5 {[%clk 0:02:34]} 17. Ne3 {[%clk 0:02:53]}  b4 {[%clk 0:02:32]} 18. Qa6 {[%clk 0:02:26]}  Nc5 {[%clk 0:02:26]} 19. Qa5 {[%clk 0:02:24]}  Qxa5 {[%clk 0:02:23]} 20. Rxa5 {[%clk 0:02:24]}  Ncxe4 {[%clk 0:02:23]} 21. Nc4 {[%clk 0:02:22]}  Nc3 {[%clk 0:02:20]} 22. Bxa8 {[%clk 0:02:22]}  Rxa8 {[%clk 0:02:19]} 23. Rexe5 {[%clk 0:02:18]}  Rd8 {[%clk 0:02:11]} 24. Be3 {[%clk 0:02:11]}  Nfd5 {[%clk 0:02:03]} 25. Rg5 {[%clk 0:01:38]}  Bf6 {[%clk 0:01:44]} 26. Rgxd5 {[%clk 0:01:26]}  Nxd5 {[%clk 0:01:42]} 27. Bc5 {[%clk 0:01:17]}  Bc3 {[%clk 0:01:38]} 28. Rxa7 {[%clk 0:01:15]}  Nf6 {[%clk 0:01:31]} 29. Kg2 {[%clk 0:01:12]}  Ne4 {[%clk 0:01:27]} 30. Be3 {[%clk 0:01:11]}  Re8 {[%clk 0:01:09]} 31. Rb7 {[%clk 0:01:05]}  h5 {[%clk 0:01:06]} 32. g4 {[%clk 0:01:03]}  hxg4 {[%clk 0:01:04]} 33. hxg4 {[%clk 0:01:04]}  Nf6 {[%clk 0:01:04]} 34. Kf3 {[%clk 0:01:03]}  Rd8 {[%clk 0:01:02]} 35. Bg5 {[%clk 0:01:00]}  Rd5 {[%clk 0:00:59]} 36. Bxf6 {[%clk 0:00:59]}  Bxf6 {[%clk 0:01:00]} 37. Rxb4 {[%clk 0:00:59]}  Kg7 {[%clk 0:01:00]} 38. Rb7 {[%clk 0:00:58]}  Rd1 {[%clk 0:00:58]} 39. Ke2 {[%clk 0:00:54]}  Rc1 {[%clk 0:00:56]} 40. Kd2 {[%clk 0:00:48]}  Rf1 {[%clk 0:00:56]} 41. Ke2 {[%clk 0:00:47]}  Rc1 {[%clk 0:00:56]} 42. Ne3 {[%clk 0:00:46]}  Bg5 {[%clk 0:00:53]} 43. Rc7 {[%clk 0:00:46]}  Bf4 {[%clk 0:00:53]} 44. Rc4 {[%clk 0:00:45]}  Bg5 {[%clk 0:00:51]} 45. f4 {[%clk 0:00:45]}  Bh4 {[%clk 0:00:50]} 46. g5 {[%clk 0:00:42]}  Re1+ {[%clk 0:00:46]} 47. Kf3 {[%clk 0:00:41]}  Rh1 {[%clk 0:00:46]} 48. b4 {[%clk 0:00:36]}  Rb1 {[%clk 0:00:46]} 49. c3 {[%clk 0:00:35]}  Be1 {[%clk 0:00:46]} 50. Rc7 {[%clk 0:00:33]}  Bd2 {[%clk 0:00:42]} 51. Nd5 {[%clk 0:00:33]}  Rd1 {[%clk 0:00:38]} 52. Ke2 {[%clk 0:00:32]}  Bxf4 {[%clk 0:00:36]} 53. Kxd1 {[%clk 0:00:31]}  Bxc7 {[%clk 0:00:35]} 54. Nxc7 {[%clk 0:00:31]} 1-0


[Site "https://www.chess.com"]

[Event "Titled Tuesday Blitz August 22 Early 2023"]
[White "Hua, Lefong"]
[Black "Eggleston, Thomas A"]
[WhiteFideId "2602253"]
[BlackFideId "412139"]
[WhiteElo "2658"]
[BlackElo "2432"]
[Result "1-0"]
[Round "10"]
[TimeControl "180+1"]
[Date "2023.08.22"]
[WhiteClock "0:02:17"]
[BlackClock "0:01:44"]
[Board "103"]

1. d4 {[%clk 0:03:00]}  Nf6 {[%clk 0:02:59]} 2. c4 {[%clk 0:03:00]}  c5 {[%clk 0:02:59]} 3. d5 {[%clk 0:03:00]}  e5 {[%clk 0:02:59]} 4. Nc3 {[%clk 0:02:59]}  d6 {[%clk 0:02:59]} 5. e4 {[%clk 0:03:00]}  Be7 {[%clk 0:02:59]} 6. g3 {[%clk 0:03:00]}  Nbd7 {[%clk 0:02:59]} 7. Bg2 {[%clk 0:03:01]}  Nf8 {[%clk 0:02:59]} 8. Nge2 {[%clk 0:03:01]}  Ng6 {[%clk 0:02:59]} 9. O-O {[%clk 0:03:01]}  O-O {[%clk 0:02:57]} 10. f4 {[%clk 0:03:00]}  exf4 {[%clk 0:02:51]} 11. gxf4 {[%clk 0:03:01]}  Nh5 {[%clk 0:02:49]} 12. Ng3 {[%clk 0:02:58]}  Nxg3 {[%clk 0:02:45]} 13. hxg3 {[%clk 0:02:59]}  f5 {[%clk 0:02:45]} 14. Re1 {[%clk 0:02:54]}  fxe4 {[%clk 0:02:44]} 15. Nxe4 {[%clk 0:02:53]}  Bf5 {[%clk 0:02:38]} 16. Bd2 {[%clk 0:02:48]}  Bf6 {[%clk 0:02:35]} 17. Nxf6+ {[%clk 0:02:46]}  Qxf6 {[%clk 0:02:32]} 18. Bc3 {[%clk 0:02:46]}  Qf7 {[%clk 0:02:32]} 19. g4 {[%clk 0:02:41]}  Bd7 {[%clk 0:02:30]} 20. f5 {[%clk 0:02:39]}  Nf4 {[%clk 0:02:29]} 21. Qf3 {[%clk 0:02:33]}  Nxg2 {[%clk 0:02:25]} 22. Kxg2 {[%clk 0:02:33]}  b5 {[%clk 0:02:13]} 23. b3 {[%clk 0:02:31]}  bxc4 {[%clk 0:02:12]} 24. bxc4 {[%clk 0:02:31]}  Rab8 {[%clk 0:02:12]} 25. Qf4 {[%clk 0:02:22]}  Rb4 {[%clk 0:02:08]} 26. Bxb4 {[%clk 0:02:20]}  cxb4 {[%clk 0:02:08]} 27. Qxd6 {[%clk 0:02:20]}  Bxf5 {[%clk 0:01:57]} 28. gxf5 {[%clk 0:02:17]}  Qxf5 {[%clk 0:01:44]} 29. Qe6+ {[%clk 0:02:17]} 1-0


[Site "https://www.chess.com"]

[Event "Titled Tuesday Blitz August 22 Early 2023"]
[White "Kozin, Yuri"]
[Black "Ronka, Erik"]
[WhiteFideId "4129920"]
[BlackFideId "505080"]
[WhiteElo "2551"]
[BlackElo "2409"]
[Result "0-1"]
[Round "10"]
[TimeControl "180+1"]
[Date "2023.08.22"]
[WhiteClock "0:00:17"]
[BlackClock "0:00:11"]
[Board "108"]

1. e4 {[%clk 0:03:00]}  e5 {[%clk 0:02:56]} 2. Nf3 {[%clk 0:02:58]}  d6 {[%clk 0:02:50]} 3. d4 {[%clk 0:02:58]}  f5 {[%clk 0:02:50]} 4. dxe5 {[%clk 0:02:43]}  fxe4 {[%clk 0:02:49]} 5. Ng5 {[%clk 0:02:43]}  d5 {[%clk 0:02:50]} 6. e6 {[%clk 0:02:26]}  Nc6 {[%clk 0:02:14]} 7. Nf7 {[%clk 0:02:20]}  Qf6 {[%clk 0:02:14]} 8. Nxh8 {[%clk 0:02:19]}  Bc5 {[%clk 0:02:15]} 9. Be3 {[%clk 0:02:07]}  Bxe3 {[%clk 0:02:15]} 10. fxe3 {[%clk 0:02:08]}  Bxe6 {[%clk 0:02:16]} 11. Nc3 {[%clk 0:02:03]}  O-O-O {[%clk 0:02:15]} 12. Bb5 {[%clk 0:01:50]}  d4 {[%clk 0:02:03]} 13. Nxe4 {[%clk 0:01:42]}  Qh4+ {[%clk 0:01:54]} 14. Ng3 {[%clk 0:01:42]}  dxe3 {[%clk 0:01:46]} 15. Qh5 {[%clk 0:01:29]}  Qf6 {[%clk 0:01:02]} 16. Ne4 {[%clk 0:01:14]}  Qd4 {[%clk 0:00:47]} 17. Bxc6 {[%clk 0:01:10]}  bxc6 {[%clk 0:00:47]} 18. Rd1 {[%clk 0:00:55]}  Qxe4 {[%clk 0:00:18]} 19. Rxd8+ {[%clk 0:00:46]}  Kxd8 {[%clk 0:00:19]} 20. O-O {[%clk 0:00:45]}  Nf6 {[%clk 0:00:18]} 21. Qg5 {[%clk 0:00:42]}  e2 {[%clk 0:00:17]} 22. Re1 {[%clk 0:00:39]}  Bd5 {[%clk 0:00:14]} 23. Qxg7 {[%clk 0:00:32]}  Qd4+ {[%clk 0:00:13]} 24. Kh1 {[%clk 0:00:29]}  Qf2 {[%clk 0:00:12]} 25. Qg3 {[%clk 0:00:17]}  Bxg2+ {[%clk 0:00:11]} 0-1


[Site "https://www.chess.com"]

[Event "Titled Tuesday Blitz August 22 Early 2023"]
[White "Albertini, Luca"]
[Black "Boraso, Alessio"]
[WhiteFideId "847038"]
[BlackFideId "848077"]
[WhiteElo "2373"]
[BlackElo "2507"]
[Result "1-0"]
[Round "10"]
[TimeControl "180+1"]
[Date "2023.08.22"]
[WhiteClock "0:00:17"]
[BlackClock "0:00:00"]
[Board "110"]

1. e4 {[%clk 0:02:49]}  e6 {[%clk 0:02:59]} 2. d3 {[%clk 0:02:48]}  d5 {[%clk 0:02:52]} 3. exd5 {[%clk 0:02:48]}  exd5 {[%clk 0:02:51]} 4. g3 {[%clk 0:02:49]}  Nf6 {[%clk 0:02:50]} 5. Bg2 {[%clk 0:02:49]}  Be7 {[%clk 0:02:50]} 6. Ne2 {[%clk 0:02:50]}  O-O {[%clk 0:02:51]} 7. O-O {[%clk 0:02:50]}  Bf5 {[%clk 0:02:49]} 8. Nd4 {[%clk 0:02:48]}  Bg4 {[%clk 0:02:45]} 9. Bf3 {[%clk 0:02:46]}  Bxf3 {[%clk 0:02:44]} 10. Qxf3 {[%clk 0:02:47]}  c6 {[%clk 0:02:36]} 11. Nc3 {[%clk 0:02:45]}  Nbd7 {[%clk 0:02:36]} 12. Re1 {[%clk 0:02:43]}  Re8 {[%clk 0:02:36]} 13. Bg5 {[%clk 0:02:37]}  h6 {[%clk 0:02:36]} 14. Bd2 {[%clk 0:02:34]}  Bc5 {[%clk 0:02:35]} 15. Nf5 {[%clk 0:02:31]}  Qc7 {[%clk 0:02:24]} 16. d4 {[%clk 0:02:25]}  Bf8 {[%clk 0:02:23]} 17. Bf4 {[%clk 0:02:21]}  Qb6 {[%clk 0:02:19]} 18. Be5 {[%clk 0:02:16]}  Qxb2 {[%clk 0:01:43]} 19. Rab1 {[%clk 0:01:59]}  Qa3 {[%clk 0:01:17]} 20. Rb3 {[%clk 0:01:42]}  Qa6 {[%clk 0:01:07]} 21. Re3 {[%clk 0:01:31]}  Re6 {[%clk 0:00:54]} 22. h4 {[%clk 0:01:16]}  Rae8 {[%clk 0:00:53]} 23. Bf4 {[%clk 0:01:01]}  Ne4 {[%clk 0:00:47]} 24. Nxe4 {[%clk 0:00:47]}  dxe4 {[%clk 0:00:46]} 25. Qg4 {[%clk 0:00:47]}  Rg6 {[%clk 0:00:42]} 26. Qd1 {[%clk 0:00:48]}  Nf6 {[%clk 0:00:32]} 27. Be5 {[%clk 0:00:40]}  Nd5 {[%clk 0:00:26]} 28. Rxe4 {[%clk 0:00:36]}  Qxa2 {[%clk 0:00:26]} 29. h5 {[%clk 0:00:36]}  Rge6 {[%clk 0:00:25]} 30. Rg4 {[%clk 0:00:33]}  Kh7 {[%clk 0:00:19]} 31. Qd3 {[%clk 0:00:27]}  g6 {[%clk 0:00:10]} 32. hxg6+ {[%clk 0:00:24]}  fxg6 {[%clk 0:00:11]} 33. Nh4 {[%clk 0:00:24]}  Ne7 {[%clk 0:00:07]} 34. Rxb7 {[%clk 0:00:22]}  Qd5 {[%clk 0:00:00]} 35. Nxg6 {[%clk 0:00:17]} 1-0


[Site "https://www.chess.com"]

[Event "Titled Tuesday Blitz August 22 Early 2023"]
[White "Bilan, Danila"]
[Black "Carrasco Miranda, Andres"]
[WhiteFideId "24161918"]
[BlackFideId "3405990"]
[WhiteElo "2504"]
[BlackElo "2406"]
[Result "0-1"]
[Round "10"]
[TimeControl "180+1"]
[Date "2023.08.22"]
[WhiteClock "0:00:00"]
[BlackClock "0:00:36"]
[Board "111"]

1. d4 {[%clk 0:02:55]}  Nf6 {[%clk 0:02:55]} 2. Nf3 {[%clk 0:02:54]}  g6 {[%clk 0:02:50]} 3. Bg5 {[%clk 0:02:53]}  Bg7 {[%clk 0:02:49]} 4. c3 {[%clk 0:02:52]}  O-O {[%clk 0:02:49]} 5. Nbd2 {[%clk 0:02:52]}  c5 {[%clk 0:02:49]} 6. e3 {[%clk 0:02:53]}  h6 {[%clk 0:02:49]} 7. Bh4 {[%clk 0:02:53]}  d6 {[%clk 0:02:49]} 8. Bc4 {[%clk 0:02:51]}  cxd4 {[%clk 0:02:49]} 9. exd4 {[%clk 0:02:50]}  Qc7 {[%clk 0:02:49]} 10. O-O {[%clk 0:02:46]}  Nc6 {[%clk 0:02:45]} 11. Re1 {[%clk 0:02:44]}  e5 {[%clk 0:02:45]} 12. dxe5 {[%clk 0:02:16]}  dxe5 {[%clk 0:02:46]} 13. Qc2 {[%clk 0:02:15]}  Bf5 {[%clk 0:02:44]} 14. Bd3 {[%clk 0:02:11]}  Bxd3 {[%clk 0:02:17]} 15. Qxd3 {[%clk 0:02:12]}  Rfe8 {[%clk 0:02:13]} 16. Rad1 {[%clk 0:02:01]}  Nh5 {[%clk 0:02:11]} 17. Qc4 {[%clk 0:01:53]}  Rac8 {[%clk 0:01:49]} 18. Ne4 {[%clk 0:01:44]}  Nd4 {[%clk 0:01:36]} 19. Qd3 {[%clk 0:01:07]}  Nf4 {[%clk 0:01:36]} 20. Qe3 {[%clk 0:01:05]}  Nc2 {[%clk 0:01:34]} 21. Qxa7 {[%clk 0:00:55]}  Nxe1 {[%clk 0:01:33]} 22. Rxe1 {[%clk 0:00:56]}  Nd3 {[%clk 0:01:07]} 23. Re2 {[%clk 0:00:45]}  g5 {[%clk 0:01:03]} 24. Bg3 {[%clk 0:00:43]}  f5 {[%clk 0:00:58]} 25. Nexg5 {[%clk 0:00:23]}  hxg5 {[%clk 0:00:59]} 26. Nxg5 {[%clk 0:00:24]}  Nf4 {[%clk 0:00:52]} 27. Re1 {[%clk 0:00:17]}  Nh5 {[%clk 0:00:48]} 28. Qa4 {[%clk 0:00:13]}  Nxg3 {[%clk 0:00:48]} 29. hxg3 {[%clk 0:00:13]}  Bf6 {[%clk 0:00:43]} 30. Qb3+ {[%clk 0:00:10]}  Qc4 {[%clk 0:00:43]} 31. Qxb7 {[%clk 0:00:04]}  Bxg5 {[%clk 0:00:41]} 32. Rd1 {[%clk 0:00:04]}  Rcd8 {[%clk 0:00:38]} 33. Re1 {[%clk 0:00:02]}  e4 {[%clk 0:00:38]} 34. Qb6 {[%clk 0:00:00]}  Qf7 {[%clk 0:00:36]} 0-1


[Site "https://www.chess.com"]

[Event "Titled Tuesday Blitz August 22 Early 2023"]
[White "Petrova, Irina"]
[Black "Mazurkiewicz, Michal"]
[WhiteFideId "14124122"]
[BlackFideId "1124943"]
[WhiteElo "2360"]
[BlackElo "2495"]
[Result "0-1"]
[Round "10"]
[TimeControl "180+1"]
[Date "2023.08.22"]
[WhiteClock "0:00:17"]
[BlackClock "0:00:16"]
[Board "112"]

1. e4 {[%clk 0:03:00]}  d6 {[%clk 0:03:00]} 2. d4 {[%clk 0:03:00]}  Nf6 {[%clk 0:03:01]} 3. Nc3 {[%clk 0:03:01]}  c6 {[%clk 0:03:01]} 4. Nf3 {[%clk 0:03:00]}  Bg4 {[%clk 0:03:01]} 5. Be2 {[%clk 0:03:00]}  e6 {[%clk 0:03:01]} 6. O-O {[%clk 0:02:59]}  d5 {[%clk 0:03:00]} 7. e5 {[%clk 0:02:59]}  Nfd7 {[%clk 0:03:00]} 8. h3 {[%clk 0:02:57]}  Bh5 {[%clk 0:03:01]} 9. Be3 {[%clk 0:02:57]}  c5 {[%clk 0:03:00]} 10. Nb5 {[%clk 0:02:54]}  Nc6 {[%clk 0:02:57]} 11. Nd6+ {[%clk 0:02:53]}  Bxd6 {[%clk 0:02:57]} 12. exd6 {[%clk 0:02:53]}  Bxf3 {[%clk 0:02:57]} 13. Bxf3 {[%clk 0:02:53]}  cxd4 {[%clk 0:02:57]} 14. Bxd4 {[%clk 0:02:54]}  Nxd4 {[%clk 0:02:57]} 15. Qxd4 {[%clk 0:02:55]}  O-O {[%clk 0:02:56]} 16. c4 {[%clk 0:02:54]}  dxc4 {[%clk 0:02:32]} 17. Bxb7 {[%clk 0:02:55]}  Rb8 {[%clk 0:02:31]} 18. Bf3 {[%clk 0:02:53]}  Qb6 {[%clk 0:02:28]} 19. Qxc4 {[%clk 0:02:51]}  Ne5 {[%clk 0:02:25]} 20. Qe4 {[%clk 0:02:46]}  Nxf3+ {[%clk 0:02:19]} 21. Qxf3 {[%clk 0:02:47]}  Qxd6 {[%clk 0:02:20]} 22. b3 {[%clk 0:02:46]}  Rbc8 {[%clk 0:02:17]} 23. Rfd1 {[%clk 0:02:44]}  Qa6 {[%clk 0:02:16]} 24. Qe3 {[%clk 0:02:41]}  Rfd8 {[%clk 0:02:14]} 25. Rxd8+ {[%clk 0:02:35]}  Rxd8 {[%clk 0:02:15]} 26. Rc1 {[%clk 0:02:36]}  Qxa2 {[%clk 0:02:05]} 27. Qg5 {[%clk 0:02:30]}  f6 {[%clk 0:01:32]} 28. Qb5 {[%clk 0:02:27]}  Qd2 {[%clk 0:01:22]} 29. Ra1 {[%clk 0:02:16]}  Qd4 {[%clk 0:01:08]} 30. Ra6 {[%clk 0:02:09]}  Qf4 {[%clk 0:00:50]} 31. Ra1 {[%clk 0:02:03]}  h6 {[%clk 0:00:41]} 32. Qc5 {[%clk 0:02:00]}  a6 {[%clk 0:00:30]} 33. Qb6 {[%clk 0:02:00]}  Rd6 {[%clk 0:00:30]} 34. Qb7 {[%clk 0:01:41]}  Kh7 {[%clk 0:00:28]} 35. Qc8 {[%clk 0:01:40]}  Rd2 {[%clk 0:00:22]} 36. Qc5 {[%clk 0:01:29]}  Qd6 {[%clk 0:00:19]} 37. Qc1 {[%clk 0:01:17]}  a5 {[%clk 0:00:15]} 38. g3 {[%clk 0:01:15]}  Qd4 {[%clk 0:00:15]} 39. Qb1+ {[%clk 0:01:07]}  f5 {[%clk 0:00:16]} 40. Qe1 {[%clk 0:00:54]}  Rxf2 {[%clk 0:00:16]} 41. Qxf2 {[%clk 0:00:50]}  Qxa1+ {[%clk 0:00:16]} 42. Kh2 {[%clk 0:00:51]}  Qe5 {[%clk 0:00:16]} 43. Qb6 {[%clk 0:00:49]}  h5 {[%clk 0:00:14]} 44. h4 {[%clk 0:00:48]}  f4 {[%clk 0:00:14]} 45. gxf4 {[%clk 0:00:47]}  Qxf4+ {[%clk 0:00:15]} 46. Kg2 {[%clk 0:00:43]}  Qg4+ {[%clk 0:00:16]} 47. Kf1 {[%clk 0:00:41]}  Qf3+ {[%clk 0:00:13]} 48. Kg1 {[%clk 0:00:39]}  Qd5 {[%clk 0:00:14]} 49. Kh2 {[%clk 0:00:34]}  e5 {[%clk 0:00:14]} 50. Kg3 {[%clk 0:00:27]}  Qd3+ {[%clk 0:00:13]} 51. Kf2 {[%clk 0:00:20]}  Qd4+ {[%clk 0:00:13]} 52. Qxd4 {[%clk 0:00:19]}  exd4 {[%clk 0:00:14]} 53. Ke2 {[%clk 0:00:19]}  g5 {[%clk 0:00:14]} 54. hxg5 {[%clk 0:00:19]}  h4 {[%clk 0:00:15]} 55. Kd3 {[%clk 0:00:17]}  h3 {[%clk 0:00:16]} 0-1


[Site "https://www.chess.com"]

[Event "Titled Tuesday Blitz August 22 Early 2023"]
[White "laidfrq"]
[Black "Tikhonov, Viacheslav"]
[BlackFideId "44196407"]
[WhiteElo "2367"]
[BlackElo "2495"]
[Result "1-0"]
[Round "10"]
[TimeControl "180+1"]
[Date "2023.08.22"]
[WhiteClock "0:01:05"]
[BlackClock "0:00:08"]
[Board "113"]

1. e4 {[%clk 0:02:56]}  c5 {[%clk 0:02:59]} 2. Nf3 {[%clk 0:02:55]}  d6 {[%clk 0:02:58]} 3. d4 {[%clk 0:02:55]}  cxd4 {[%clk 0:02:59]} 4. Nxd4 {[%clk 0:02:55]}  Nf6 {[%clk 0:03:00]} 5. Nc3 {[%clk 0:02:53]}  a6 {[%clk 0:03:01]} 6. h3 {[%clk 0:02:52]}  e5 {[%clk 0:03:00]} 7. Nde2 {[%clk 0:02:51]}  h5 {[%clk 0:03:00]} 8. Bg5 {[%clk 0:02:49]}  Be6 {[%clk 0:03:00]} 9. Bxf6 {[%clk 0:02:47]}  Qxf6 {[%clk 0:03:01]} 10. Nd5 {[%clk 0:02:48]}  Qd8 {[%clk 0:02:57]} 11. Qd3 {[%clk 0:02:48]}  Nd7 {[%clk 0:02:55]} 12. Nec3 {[%clk 0:02:47]}  Nc5 {[%clk 0:02:55]} 13. Qf3 {[%clk 0:02:42]}  Be7 {[%clk 0:02:50]} 14. b4 {[%clk 0:02:38]}  Nd7 {[%clk 0:02:47]} 15. Bc4 {[%clk 0:02:39]}  Bg5 {[%clk 0:02:40]} 16. O-O {[%clk 0:02:36]}  Rc8 {[%clk 0:02:36]} 17. Bb3 {[%clk 0:02:36]}  g6 {[%clk 0:02:23]} 18. a4 {[%clk 0:02:34]}  O-O {[%clk 0:02:23]} 19. a5 {[%clk 0:02:31]}  Kg7 {[%clk 0:02:22]} 20. Rad1 {[%clk 0:02:28]}  f5 {[%clk 0:02:21]} 21. exf5 {[%clk 0:02:26]}  Bxf5 {[%clk 0:02:15]} 22. Ne4 {[%clk 0:02:04]}  Bh4 {[%clk 0:02:12]} 23. Qe2 {[%clk 0:02:01]}  Nb8 {[%clk 0:02:05]} 24. Nb6 {[%clk 0:01:56]}  Rc6 {[%clk 0:01:51]} 25. c4 {[%clk 0:01:56]}  Be7 {[%clk 0:01:32]} 26. Nd5 {[%clk 0:01:52]}  Bh4 {[%clk 0:01:20]} 27. b5 {[%clk 0:01:40]}  axb5 {[%clk 0:01:14]} 28. cxb5 {[%clk 0:01:41]}  Rc8 {[%clk 0:01:10]} 29. Nb6 {[%clk 0:01:39]}  Bxe4 {[%clk 0:01:01]} 30. Nxc8 {[%clk 0:01:38]}  d5 {[%clk 0:00:25]} 31. Nb6 {[%clk 0:01:35]}  Qg5 {[%clk 0:00:24]} 32. f3 {[%clk 0:01:33]}  Bf5 {[%clk 0:00:20]} 33. Qxe5+ {[%clk 0:01:31]}  Kh6 {[%clk 0:00:19]} 34. Rxd5 {[%clk 0:01:29]}  Bg3 {[%clk 0:00:17]} 35. f4 {[%clk 0:01:24]}  Qh4 {[%clk 0:00:15]} 36. Qe3 {[%clk 0:01:14]}  Rf6 {[%clk 0:00:13]} 37. Rd8 {[%clk 0:01:13]}  Re6 {[%clk 0:00:13]} 38. Rh8+ {[%clk 0:01:11]}  Kg7 {[%clk 0:00:14]} 39. Qc3+ {[%clk 0:01:08]}  Kf7 {[%clk 0:00:12]} 40. Rh7+ {[%clk 0:01:05]}  Kg8 {[%clk 0:00:08]} 41. Qg7# {[%clk 0:01:05]} 1-0


[Site "https://www.chess.com"]